[Event "Romanian Championship 2024"]
[Site "Eforie Nord"]
[Date "2024.02.26"]
[Round "3.13"]
[White "Sava, Robert-Gabriel"]
[Black "Ghimpu, Samuel-Timotei"]
[Result "0-1"]
[ECO "A48"]
[WhiteElo "2053"]
[BlackElo "2467"]
[Annotator "RC"]
[PlyCount "108"]
[EventDate "2024.02.24"]
[EventType "swiss"]
[EventCountry "ROU"]
[SourceTitle "playchess.com"]
[Source "ChessBase"]
[SourceQuality "1"]
[TimeControl "40/5400+30:900+30"]

1. d4 {[%emt 0:00:06]} Nf6 {[%emt 0:01:56]} 2. Nf3 {[%emt 0:00:21]} g6 {[%emt 0:02:36]} 3. e3 {[%emt 0:00:59]} Bg7 {[%emt 0:00:32]} 4. Bd3 {[%emt 0:00:14]} O-O {[%emt 0:00:33]} 5. Nbd2 {[%emt 0:01:06]} d6 {[%emt 0:00:46]} 6. O-O {[%emt 0:00:27]} Nc6 {[%emt 0:00:35]} 7. e4 {[%emt 0:03:32]} Nh5 {[%emt 0:06:16]} 8. d5 {[%emt 0:02:16]} Nb4 {[%emt 0:00:59]} 9. Bc4 {[%emt 0:03:08]} c6 {[%emt 0:01:39]} 10. a3 {[%emt 0:05:46]} Na6 {[%emt 0:00:34]} 11. Bxa6 {[%emt 0:03:03]} bxa6 {[%emt 0:01:14]} 12. c4 {[%emt 0:00:12]} cxd5 {[%emt 0:29:00]} 13. cxd5 {[%emt 0:00:44]} a5 {[%emt 0:00:23]} 14. Nb3 {[%emt 0:02:15]} e5 {[%emt 0:03:56]} 15. Bd2 {[%emt 0:02:21]} f5 {[%emt 0:03:31]} 16. Nxa5 {[%emt 0:06:18]} fxe4 {[%emt 0:00:13]} 17. Nc6 {[%emt 0:00:23]} Qd7 {[%emt 0:01:22]} 18. Ng5 {[%emt 0:01:42]} Nf6 {[%emt 0:01:30]} 19. Be3 {[%emt 0:02:49]} Ba6 {[%emt 0:01:31]} 20. Qa4 {[%emt 0:11:40]} Bxf1 {[%emt 0:04:06]} 21. Rxf1 {[%emt 0:00:09]} Bh6 {[%emt 0:18:06]} 22. Ne6 {[%emt 0:03:58]} Bxe3 {[%emt 0:00:28]} 23. fxe3 {[%emt 0:00:53]} Nxd5 {[%emt 0:00:46]} 24. Nxf8 {[%emt 0:00:46]} Rxf8 {[%emt 0:00:10]} 25. Rxf8+ {[%emt 0:02:46]} Kxf8 {[%emt 0:00:03]} 26. Qc4 {[%emt 0:01:59]} Nxe3 {[%emt 0:00:24]} 27. Qxe4 {[%emt 0:00:36]} Nf5 {[%emt 0:00:10]} 28. Nb4 {[%emt 0:01:54]} Qa4 {[%emt 0:07:48]} 29. Qd5 {[%emt 0:09:15]} a5 {[%emt 0:00:30]} 30. g4 {[%emt 0:12:43]} Ne7 {[%emt 0:00:06]} 31. Qf3+ {[%emt 0:04:17]} Kg7 {[%emt 0:01:14]} 32. g5 {[%emt 0:01:36]} Kg8 {[%emt 0:09:01]} 33. Qf6 {[%emt 0:09:30]} Qd7 {[%emt 0:00:53]} 34. Nd3 {[%emt 0:01:26]} a4 {[%emt 0:01:29]} 35. Kg2 {[%emt 0:03:42]} Nd5 {[%emt 0:02:14]} 36. Qf3 {[%emt 0:00:22]} Qc6 {[%emt 0:00:31]} 37. Kg1 {[%emt 0:01:37]} Qc4 {[%emt 0:01:13]} 38. Qh3 {[%emt 0:01:35]} Ne7 {[%emt 0:00:38]} 39. Qd7 {[%emt 0:00:57]} Qd4+ {[%emt 0:00:15]} 40. Nf2 {[%emt 0:00:00]} Kf7 {[%emt 0:00:00]} 41. Qh3 {[%emt 0:02:31]} Qxb2 {[%emt 0:10:41]} 42. Qxh7+ {[%emt 0:00:08]} Ke6 {[%emt 0:00:04]} 43. Qh3+ {[%emt 0:02:49]} Nf5 {[%emt 0:00:19]} 44. Qg4 {[%emt 0:05:27]} Qc1+ {[%emt 0:03:21]} 45. Kg2 {[%emt 0:00:39]} Qc6+ {[%emt 0:00:01]} 46. Kg1 {[%emt 0:00:39]} d5 {[%emt 0:00:13]} 47. h4 {[%emt 0:00:46]} Qc4 {[%emt 0:00:38]} 48. Qxc4 {[%emt 0:01:28]} dxc4 {[%emt 0:00:02]} 49. Ne4 {[%emt 0:00:11]} Kd5 {[%emt 0:00:04]} 50. Nc3+ {[%emt 0:01:15]} Kd4 {[%emt 0:00:08]} 51. Nxa4 {[%emt 0:00:04]} c3 {[%emt 0:00:05]} 52. Nxc3 {[%emt 0:00:03]} Kxc3 {[%emt 0:00:02]} 53. Kf2 {[%emt 0:00:10]} e4 {[%emt 0:00:06]} 54. a4 {[%emt 0:00:04]} Kd2 {[%emt 0:00:16]} 0-1

[Event "Romanian Championship 2024"]
[Site "Eforie Nord"]
[Date "2024.02.26"]
[Round "3.14"]
[White "Antonica, Dragos-Andrei"]
[Black "Negrean, Andrei"]
[Result "0-1"]
[ECO "A19"]
[WhiteElo "2366"]
[BlackElo "1990"]
[Annotator "TA"]
[PlyCount "46"]
[EventDate "2024.02.24"]
[EventType "swiss"]
[EventCountry "ROU"]
[SourceTitle "playchess.com"]
[Source "ChessBase"]
[SourceQuality "1"]
[TimeControl "40/5400+30:900+30"]

{[%evp 9,46,7,16,10,6,7,12,3,102,122,126,28,0,-133,-119,-199,-188,-171,-213,-260,-277,-538,-283,-262,-280,-298,-260,-852,-867,-841,-821,-1126,-1122,-1285,-1286,-1269,-1221,-1209,-1202]} 1. c4 {[%emt 0:01:02]} Nf6 {[%emt 0:00:16]} 2. Nc3 {[%emt 0:00:32]} c5 {[%emt 0:00:28]} 3. g3 {[%emt 0:00:32]} e6 {[%emt 0:00:33]} 4. e4 {[%emt 0:02:53]} Nc6 {[%emt 0:12:23][%cal Bb8c6,Bc6b4,Bb4c2][%mdl 32]} 5. Bg2 {[%emt 0:00:51]} d5 {[%emt 0:06:41]} 6. cxd5 {[%emt 0:19:41]} exd5 {[%emt 0:00:49]} 7. exd5 {[%emt 0:07:01]} Nb4 {[%emt 0:06:52][%cal Oc8f5]} 8. d3 {[%emt 0:06:16] Die Stellung ist ausgeglichen.} c4 {[%emt 0:18:42]} (8... Be7 $11 {hält das Gleichgewicht.}) 9. dxc4 $16 {[%emt 0:25:21] Droht a3 und aus.} Bf5 {[%emt 0:00:21] [#]} 10. Nf3 {[%emt 0:13:15]} (10. Kf1 $1 $16) 10... Nc2+ $11 {[%emt 0:01:25]} 11. Kd2 {[%emt 0:02:27]} (11. Kf1 $11 {bleibt in der Remisbreite.} Nxa1 12. Nd4) 11... Nxa1 $17 {[%emt 0:04:00]} 12. Re1+ {[%emt 0:01:19]} (12. Nd4 $17 Qd7 13. Nxf5 Qxf5 14. Rf1) 12... Be7 $19 {[%emt 0:00:59] ...0-0 ist eine echte Drohung.} 13. Nd4 {[%emt 0:00:16] [#]} Bg6 {[%emt 0:04:23] Und ...0-0 würde nun gewinnen.} 14. Qa4+ {[%emt 0:02:58]} Kf8 {[%emt 0:03:30]} 15. b4 {[%emt 0:05:41] Wehrt Bc5 ab} (15. b3 {war angesagt.} Kg8 16. Ba3) 15... a5 {[%emt 0:03:44]} 16. c5 {[%emt 0:02:11]} Nd7 {[%emt 0:06:42]} 17. d6 {[%emt 0:05:42]} Bf6 {[%emt 0:00:10]} 18. Ncb5 {[%emt 0:01:00]} (18. Bxb7 Rb8 19. Qxa5 (19. Nc6 $2 Bxc3+ 20. Kxc3 Qf6+ 21. Kd2 Qf5 $19) 19... Bxd4 (19... Rxb7 20. Qxd8+ Bxd8 21. Nd5 $15) (19... Qxa5 20. bxa5 Nxc5 21. d7 $19) 20. Qxd8+ Rxd8 21. c6) 18... axb4 {[%emt 0:05:09] Schwarz steht klar auf Gewinn.} 19. Qxb4 {[%emt 0:00:03]} Rxa2+ {[%emt 0:02:47]} 20. Bb2 {[%emt 0:00:08] [#]} Nc2 $1 {[%emt 0:00:09]} 21. Nxc2 {[%emt 0:01:19]} (21. Qc3 Rxb2) 21... Rxb2 {[%emt 0:00:07]} 22. Nc7 {[%emt 0:00:31]} Rxb4 {[%emt 0:01:15]} 23. Nxb4 {[%emt 0:00:04]} Nxc5 {[%emt 0:00:09] Gewichteter Fehlerwert: Weiß=1.21/Schwarz=0.51.  Fehler:       	Weiß=5     	Schwarz=1     Ungenau:       	---       	Schwarz=1     OK:         	Weiß=2     	Schwarz=2     Bester:       	Weiß=4     	Schwarz=6} 0-1

[Event "Romanian Championship 2024"]
[Site "Eforie Nord"]
[Date "2024.02.26"]
[Round "3.15"]
[White "Bonte, Andrei-Mihai"]
[Black "Vedmediuc, Artiom"]
[Result "1-0"]
[ECO "D03"]
[WhiteElo "2266"]
[BlackElo "2034"]
[Annotator "TA"]
[PlyCount "63"]
[EventDate "2024.02.24"]
[EventType "swiss"]
[EventCountry "ROU"]
[SourceTitle "playchess.com"]
[Source "ChessBase"]
[SourceQuality "1"]
[TimeControl "40/5400+30:900+30"]

{[%evp 18,63,15,19,22,0,14,13,42,43,39,40,64,29,826,816,2195,498,501,516,29992,413,420,391,447,444,792,745,29993,587,631,609,585,443,2310,1812,29981,29982,29981,29982,29991,5497,29996,29997,29997,29998,29998,29999]} 1. d4 {[%emt 0:00:04]} d5 {[%emt 0:00:07]} 2. Nf3 {[%emt 0:00:29]} Nf6 {[%emt 0:00:06]} 3. c3 {[%emt 0:05:11]} e6 {[%emt 0:02:07]} 4. Bf4 {[%emt 0:00:19]} Bd6 {[%emt 0:00:15]} 5. e3 {[%emt 0:02:37]} O-O {[%emt 0:00:21]} 6. Nbd2 {[%emt 0:05:53]} c5 {[%emt 0:04:21]} 7. Ne5 {[%emt 0:03:57]} b6 {[%emt 0:01:02]} 8. Bd3 {[%emt 0:07:56]} Bb7 {[%emt 0:01:21]} 9. Bg5 {[%emt 0:11:58]} Be7 {[%emt 0:15:04]} 10. Qf3 {[%emt 0:03:24]} Nbd7 {[%emt 0:08:45]} 11. h4 {[%emt 0:07:33]} (11. Bf4 {vereinfacht} Nxe5 12. dxe5 Nd7 13. Bc2) 11... Re8 {[%emt 0:25:34]} 12. Bf4 {[%emt 0:14:51]} Qc8 {[%emt 0:03:03] Die Stellung ist ausgeglichen.} 13. h5 {[%emt 0:03:55]} cxd4 {[%emt 0:08:17]} 14. exd4 {[%emt 0:01:25]} Nxe5 {[%emt 0:01:06]} 15. Bxe5 {[%emt 0:00:42] h6 wäre nun fies.} (15. dxe5 {vereinfacht} Nd7 16. Qe3 f5 17. O-O) 15... Nd7 $2 {[%emt 0:08:44][%mdl 8192] [#]} (15... h6 $11) 16. Bxh7+ $1 $18 {[%emt 0:14:38][%mdl 512]} Kxh7 {[%emt 0:01:05]} (16... Kf8 17. h6) 17. Qxf7 {[%emt 0:00:19]} (17. h6 $142 Bf6 18. hxg7+ Kxg7 19. Qf4) 17... Nxe5 {[%emt 0:00:07]} 18. dxe5 {[%emt 0:00:06] Weiss will mit h6 Matt setzen.} Bg5 {[%emt 0:00:15]} (18... Rf8 $18 19. Qg6+ (19. Qxe7 Qc5 $18) 19... Kg8) 19. Qg6+ {[%emt 0:00:35]} (19. h6 $142 Bxh6 20. Rxh6+ (20. Nf3 Kh8 $18) 20... Kxh6 21. O-O-O Qxc3+ 22. bxc3 g6 23. Rh1+ (23. Qxb7 Rf8 24. Rh1+ Kg5 25. Qe7+ Kf5 26. Nf3 Rfe8 27. Qg5+ Ke4 28. Qxg6+ Kf4 29. Rh4#) 23... Kg5 24. Qf6+ Kg4 25. Rh4#) 19... Kg8 {[%emt 0:00:03]} 20. Qxg5 {[%emt 0:00:31]} Rf8 {[%emt 0:00:04]} 21. h6 {[%emt 0:02:31]} Rf7 {[%emt 0:00:02]} (21... Qc7 $142 22. Nf3 Rf5) 22. Nf3 {[%emt 0:04:53] Droht Matt per h7+.} Qd7 {[%emt 0:00:26]} 23. Nd4 {[%emt 0:01:20]} (23. h7+ $142 Kh8 24. Nh4 Rf6 25. exf6 Qf7 26. Ng6+ (26. fxg7+ Qxg7 27. Ng6+ Qxg6 28. Qxg6 Rf8 29. Qg5 Bc8 30. Qe5+ Rf6 31. Qxf6#) 26... Qxg6 27. Qxg6 Rg8 28. hxg8=N+ Kxg8 29. Qxg7#) 23... Raf8 {[%emt 0:00:16]} 24. f3 {[%emt 0:00:17]} Bc8 {[%emt 0:00:42]} 25. O-O-O {[%emt 0:07:36]} Qa4 {[%emt 0:00:45]} (25... Qe7 $142 26. Qg6 Qe8) 26. Rh4 {[%emt 0:00:00] jetzt Rdh1 und aus.} Qxa2 {[%emt 0:00:14] Schwarz hat schwache schwarze Felder} 27. Rdh1 {[%emt 0:00:00]} Qa1+ {[%emt 0:01:11]} 28. Kc2 {[%emt 0:00:00]} Qa4+ {[%emt 0:00:02]} 29. Nb3 {[%emt 0:00:00]} (29. Kd2 $142 g6 30. Qxg6+ (30. Nxe6 Bxe6 31. Qxg6+ Kh8 $18) 30... Kh8 31. Rg4 (31. Nxe6 Bxe6 32. Rxa4 Bf5 $18) 31... Qxd4+ 32. cxd4 (32. Rxd4 Rg8 33. Qxf7 Rxg2+ 34. Kc1 Bd7 35. h7 Rc2+ 36. Kxc2 Ba4+ 37. Rxa4 b5 38. Qg8#) 32... Rh7 33. Qg7+ Rxg7 34. hxg7+ Kg8 35. Rh8+ Kf7 36. gxf8=Q#) 29... Qd7 {[%emt 0:00:05]} 30. hxg7 {[%emt 0:00:00] Weiß setzt Matt.} Rxg7 {[%emt 0:00:32]} 31. Rh8+ {[%emt 0:00:00]} Kf7 {[%emt 0:00:05]} 32. Qf6+ {[%emt 0:00:00] Nach der Eröffnung ein Spiel auf ein Tor.   Gewichteter Fehlerwert: Weiß=0.99/Schwarz=1.12.  Verlustzug:     	---       	Schwarz=1     Fehler:       	Weiß=1     	Schwarz=2     Ungenau:       	Weiß=1     	Schwarz=4     OK:         	Weiß=1     	Schwarz=2     Bester:       	Weiß=2     	Schwarz=1     Brilliant:      	Weiß=1     	---} 1-0

[Event "Romanian Championship 2024"]
[Site "Eforie Nord"]
[Date "2024.02.26"]
[Round "3.16"]
[White "Mintau, Andrei-Catalin"]
[Black "Tudor, Henry Edward"]
[Result "0-1"]
[ECO "B90"]
[WhiteElo "2039"]
[BlackElo "2239"]
[Annotator "TA"]
[PlyCount "104"]
[EventDate "2024.02.24"]
[EventType "swiss"]
[EventCountry "ROU"]
[SourceTitle "playchess.com"]
[Source "ChessBase"]
[SourceQuality "1"]
[TimeControl "40/5400+30:900+30"]

{[%evp 15,104,0,17,0,24,18,26,27,17,0,0,0,0,0,0,0,0,0,0,-5,40,20,37,21,37,20,110,110,116,64,70,84,106,118,97,83,118,103,114,108,99,92,87,66,52,29,39,14,25,0,0,0,77,9,21,0,0,15,13,0,0,0,0,0,0,0,0,0,0,0,0,0,0,-883,-508,-4133,-1993,-4141,-2267,-29970,-29973,-29975,-29976,-29976,-29977,-29976,-29977,-29979,-29980,-29983,-29984]} 1. e4 {[%emt 0:03:25]} c5 {[%emt 0:00:05]} 2. Nf3 {[%emt 0:00:04]} d6 {[%emt 0:00:02]} 3. d4 {[%emt 0:00:16]} cxd4 {[%emt 0:00:04]} 4. Nxd4 {[%emt 0:00:04]} Nf6 {[%emt 0:00:03]} 5. Nc3 {[%emt 0:00:07]} a6 {[%emt 0:00:03]} 6. a4 {[%emt 0:02:02]} e5 {[%emt 0:00:55]} 7. Nf3 {[%emt 0:00:05][%cal Bd4f3,Bf3h4,Bh4f5][%mdl 32]} h6 {[%emt 0:00:04]} 8. Bc4 {[%emt 0:00:37]} Be6 {[%emt 0:00:03]} 9. Qe2 {[%emt 0:01:53]} Nbd7 {[%emt 0:00:53]} 10. O-O {[%emt 0:06:43]} Rc8 {[%emt 0:00:07]} 11. Ba2 {[%emt 0:00:08] White has an edge.} Qc7 {[%emt 0:00:16]} 12. Nh4 {[%emt 0:12:55]} Bxa2 {[%emt 0:12:20]} 13. Rxa2 {[%emt 0:00:11]} Qc4 {[%emt 0:01:12]} 14. Qxc4 {[%emt 0:21:51]} Rxc4 {[%emt 0:00:11]} 15. Nf5 {[%emt 0:01:05]} Nxe4 {[%emt 0:04:48]} 16. Nxe4 {[%emt 0:00:04]} Rxe4 {[%emt 0:00:08]} 17. b3 {[%emt 0:00:45]} d5 {[%emt 0:13:59]} 18. c3 {[%emt 0:09:03] Black must now prevent f3.} g6 {[%emt 0:13:00]} 19. f3 {[%emt 0:05:30]} Bc5+ {[%emt 0:09:32]} 20. Kh1 {[%emt 0:00:04]} Rxa4 {[%emt 0:00:08]} 21. Rxa4 {[%emt 0:21:00]} gxf5 {[%emt 0:00:07]} 22. Ra5 {[%emt 0:00:39]} ({White should play} 22. f4 $16) 22... Ke7 $14 {[%emt 0:09:49]} 23. b4 {[%emt 0:02:14]} b6 {[%emt 0:00:13]} 24. Rxa6 {[%emt 0:00:17]} Bd6 {[%emt 0:00:04]} 25. f4 {[%emt 0:08:33]} e4 {[%emt 0:06:14]} 26. Be3 {[%emt 0:01:38][%cal Og2g3]} Rc8 {[%emt 0:00:30]} 27. Ra3 {[%emt 0:00:30]} (27. Bxb6 $2 Nxb6 (27... Rxc3 28. Bd8+ Ke6 29. g4 $15) 28. Rxb6 Rxc3 $19) 27... Ke6 {[%emt 0:04:40]} 28. g3 {[%emt 0:02:47]} Be7 {[%emt 0:06:26]} 29. Bd4 {[%emt 0:00:00]} Bf6 {[%emt 0:19:04]} 30. Rd1 Bxd4 {[%emt 0:00:00]} 31. Rxd4 $11 {[%emt 0:00:00][%mdl 4096] Endgame. KRR-KRN} Nf6 {[%emt 0:00:00]} 32. Ra6 {[%emt 0:00:00]} Nd7 {[%emt 0:00:00]} 33. Ra3 {[%emt 0:00:00]} Rc6 {[%emt 0:00:00]} (33... Nf6 $11) 34. Kg2 {[%emt 0:01:05]} (34. b5 $16 Rc5 35. Rb4) 34... Nf6 {[%emt 0:00:00]} 35. h3 {[%emt 0:00:44]} Ne8 $1 {[%emt 0:00:00]} 36. b5 {[%emt 0:01:18]} Rc5 {[%emt 0:00:00]} 37. Ra6 {[%emt 0:00:09]} Rxb5 {[%emt 0:00:00]} 38. Rb4 {[%emt 0:00:02]} Rxb4 {[%emt 0:00:00]} 39. cxb4 {[%emt 0:00:01] KR-KN} d4 {[%emt 0:00:00][%cal Bd5d4,Bd4d3][%mdl 32]} 40. Rxb6+ {[%emt 0:00:00]} Nd6 {[%emt 0:00:00] aiming for ...Kd7.} 41. Rc6 $1 {[%emt 0:08:54] Kf2 would now be deadly.} d3 {[%emt 0:07:53] ...d2 is the strong threat.} 42. Rc5 $1 {[%emt 0:09:47]} Nb5 $1 {[%emt 0:00:38] Strongly threatening ...d2.} 43. Kf2 $1 {[%emt 0:00:00]} (43. Rxb5 $2 {loses.} d2 44. Rb6+ Kd7 45. Rb7+ Kd6 (45... Kc6 $2 46. Rxf7 d1=Q 47. Rxf5 $19) 46. Rxf7 d1=Q $19 (46... d1=B $2 {is the wrong capture.} 47. Kf2 $18)) 43... Nd4 {[%emt 0:01:35]} 44. Re5+ $2 {[%emt 0:00:00][%mdl 8192]} (44. Ke3 $11) 44... Kd6 $19 {[%emt 0:00:30] ( -> ...d2)} 45. Ke3 {[%emt 0:00:00] [#]} (45. Re8 $142 Nc2 46. Kf1 (46. Rd8+ $2 Kc7 $19)) 45... d2 $1 {[%emt 0:00:32][%mdl 512]} 46. Kxd2 {[%emt 0:00:00]} (46. Rxe4 fxe4) 46... Nf3+ {[%emt 0:00:03]} 47. Ke3 {[%emt 0:00:35]} Nxe5 {[%emt 0:00:02] Black mates.} 48. fxe5+ {[%emt 0:00:03]} Kxe5 {[%emt 0:00:06]} 49. b5 {[%emt 0:00:39] [#]} h5 $1 {[%emt 0:00:10]} 50. b6 {[%emt 0:01:53]} Kd6 {[%emt 0:00:01]} 51. g4 {[%emt 0:00:12]} fxg4 {[%emt 0:00:36]} 52. Kxe4 {[%emt 0:00:06]} g3 {[%emt 0:00:10] Weighted Error Value: White=0.51/Black=0.09 (flawless) .  Loses game:     	White=1     	---        Mistake:       	White=3     	Black=2      Inaccurate:     	White=1     	Black=2      OK:         	White=13    	Black=18     Best:        	White=2     	Black=6      Strong:       	White=3     	Black=2} 0-1

[Event "Romanian Championship 2024"]
[Site "Eforie Nord"]
[Date "2024.02.26"]
[Round "3.17"]
[White "Melinte, Rares-Andrei"]
[Black "Nastore, Pavel-Alexandru"]
[Result "1/2-1/2"]
[ECO "A32"]
[WhiteElo "1989"]
[BlackElo "2182"]
[Annotator "RC"]
[PlyCount "53"]
[EventDate "2024.02.24"]
[EventType "swiss"]
[EventCountry "ROU"]
[SourceTitle "playchess.com"]
[Source "ChessBase"]
[SourceQuality "1"]
[TimeControl "40/5400+30:900+30"]

1. d4 {[%emt 0:00:20]} Nf6 {[%emt 0:00:06]} 2. c4 {[%emt 0:00:05]} e6 {[%emt 0:00:03]} 3. g3 {[%emt 0:00:05]} c5 {[%emt 0:00:07]} 4. Nf3 {[%emt 0:00:06]} cxd4 {[%emt 0:00:07]} 5. Nxd4 {[%emt 0:00:05]} a6 {[%emt 0:02:01]} 6. Bg2 {[%emt 0:01:04]} Qc7 {[%emt 0:00:04]} 7. O-O {[%emt 0:00:49]} Be7 {[%emt 0:00:35]} 8. b3 {[%emt 0:02:12]} O-O {[%emt 0:01:01]} 9. Bb2 {[%emt 0:00:22]} d6 {[%emt 0:04:30]} 10. Nc3 {[%emt 0:01:24]} Nbd7 {[%emt 0:00:34]} 11. Rc1 {[%emt 0:01:06]} Re8 {[%emt 0:01:53]} 12. Qd2 {[%emt 0:06:12]} Bf8 {[%emt 0:07:57]} 13. Rfd1 {[%emt 0:03:10]} Rb8 {[%emt 0:06:41]} 14. Na4 {[%emt 0:09:36]} Ne5 {[%emt 0:26:25]} 15. Nf3 {[%emt 0:16:11]} Neg4 {[%emt 0:21:09]} 16. Bd4 {[%emt 0:04:44]} Ne4 {[%emt 0:08:08]} 17. Qc2 {[%emt 0:05:17]} f5 {[%emt 0:00:23]} 18. Nd2 {[%emt 0:02:26]} Nxd2 {[%emt 0:01:26]} 19. Qxd2 {[%emt 0:00:54]} Qf7 {[%emt 0:05:14]} 20. h3 {[%emt 0:01:24]} Nf6 {[%emt 0:00:06]} 21. Bxf6 {[%emt 0:15:17]} Qxf6 {[%emt 0:04:31]} 22. Nb6 {[%emt 0:03:55]} Qf7 {[%emt 0:04:25]} 23. e4 {[%emt 0:02:52]} fxe4 {[%emt 0:01:23]} 24. Bxe4 {[%emt 0:00:31]} Bd7 {[%emt 0:00:25]} 25. Qd3 {[%emt 0:03:01]} g6 {[%emt 0:00:36]} 26. Qf3 {[%emt 0:01:06]} Red8 {[%emt 0:02:54]} 27. Rc2 {[%emt 0:12:35]} 1/2-1/2

[Event "Romanian Championship 2024"]
[Site "Eforie Nord"]
[Date "2024.02.26"]
[Round "3.18"]
[White "Vilcu, Matei-Stefan"]
[Black "Dodoi, Matei-Teodor"]
[Result "1-0"]
[ECO "B12"]
[WhiteElo "2176"]
[BlackElo "1947"]
[Annotator "RC"]
[PlyCount "115"]
[EventDate "2024.02.24"]
[EventType "swiss"]
[EventCountry "ROU"]
[SourceTitle "playchess.com"]
[Source "ChessBase"]
[SourceQuality "1"]
[TimeControl "40/5400+30:900+30"]

1. e4 {[%emt 0:00:02]} c6 {[%emt 0:00:12]} 2. d4 {[%emt 0:01:08]} d5 {[%emt 0:00:07]} 3. e5 {[%emt 0:00:01]} Bf5 {[%emt 0:00:10]} 4. Nf3 {[%emt 0:00:04]} e6 {[%emt 0:00:07]} 5. Be2 {[%emt 0:00:02]} Nd7 {[%emt 0:00:20]} 6. O-O {[%emt 0:00:09]} Ne7 {[%emt 0:00:24]} 7. Nbd2 {[%emt 0:00:36]} h6 {[%emt 0:00:20]} 8. Nb3 {[%emt 0:00:03]} g5 {[%emt 0:00:50]} 9. a4 {[%emt 0:00:49]} Bg7 {[%emt 0:01:37]} 10. a5 {[%emt 0:01:17]} Rc8 {[%emt 0:03:16]} 11. Ne1 {[%emt 0:04:27]} c5 {[%emt 0:10:05]} 12. c3 {[%emt 0:01:41]} c4 {[%emt 0:05:39]} 13. Nd2 {[%emt 0:00:10]} O-O {[%emt 0:01:36]} 14. b3 {[%emt 0:03:04]} cxb3 {[%emt 0:06:17]} 15. Qxb3 {[%emt 0:01:08]} Qc7 {[%emt 0:02:30]} 16. Ba3 {[%emt 0:05:52]} Rfe8 {[%emt 0:00:37]} 17. Bb4 {[%emt 0:13:33]} Ng6 {[%emt 0:14:03]} 18. Nd3 {[%emt 0:02:20]} Bf8 {[%emt 0:06:18]} 19. Rfc1 {[%emt 0:02:05]} Bxd3 {[%emt 0:06:11]} 20. Bxd3 {[%emt 0:00:19]} Nf4 {[%emt 0:00:07]} 21. Bf1 {[%emt 0:02:58]} Bxb4 {[%emt 0:03:54]} 22. Qxb4 {[%emt 0:00:11]} Nb8 {[%emt 0:02:47]} 23. g3 {[%emt 0:13:01]} Nc6 {[%emt 0:00:58]} 24. Qb2 {[%emt 0:00:46]} Ng6 {[%emt 0:00:57]} 25. c4 {[%emt 0:01:47]} Qd7 {[%emt 0:04:09]} 26. Bg2 {[%emt 0:09:18]} dxc4 {[%emt 0:14:24]} 27. Rxc4 {[%emt 0:06:31]} Nce7 {[%emt 0:04:56]} 28. Ne4 {[%emt 0:19:10]} Nd5 {[%emt 0:00:42]} 29. Rxc8 {[%emt 0:02:42]} Rxc8 {[%emt 0:00:10]} 30. Nd6 {[%emt 0:03:18]} Rc7 {[%emt 0:02:15]} 31. Bxd5 {[%emt 0:01:57]} exd5 {[%emt 0:00:07]} 32. Rc1 {[%emt 0:02:36]} Rxc1+ {[%emt 0:04:48]} 33. Qxc1 {[%emt 0:00:01]} Ne7 {[%emt 0:03:12]} 34. Qc5 {[%emt 0:01:18]} a6 {[%emt 0:00:36]} 35. Qb6 {[%emt 0:01:16]} Nc6 {[%emt 0:00:36]} 36. Nxb7 {[%emt 0:01:17]} Nxd4 {[%emt 0:00:14]} 37. Qxd4 {[%emt 0:00:39]} Qxb7 {[%emt 0:00:05]} 38. Qb6 {[%emt 0:00:15]} Qe7 {[%emt 0:01:48]} 39. Qxa6 {[%emt 0:00:47]} Qxe5 {[%emt 0:00:12]} 40. Qxh6 {[%emt 0:00:00]} Qe1+ {[%emt 0:00:00]} 41. Kg2 {[%emt 0:01:15]} Qxa5 {[%emt 0:08:45]} 42. Qxg5+ {[%emt 0:00:22]} Kh7 {[%emt 0:00:56]} 43. h4 {[%emt 0:01:17]} Qa8 {[%emt 0:00:49]} 44. Kh2 {[%emt 0:03:46]} Qa2 {[%emt 0:01:21]} 45. Qf6 {[%emt 0:00:59]} Kg8 {[%emt 0:01:13]} 46. h5 {[%emt 0:06:13]} Qe2 {[%emt 0:01:45]} 47. h6 {[%emt 0:01:02]} Qh5+ {[%emt 0:01:26]} 48. Kg2 {[%emt 0:00:06]} Qg6 {[%emt 0:00:59]} 49. Qxg6+ {[%emt 0:00:11]} fxg6 {[%emt 0:00:07]} 50. Kf3 {[%emt 0:00:27]} Kh7 {[%emt 0:00:50]} 51. Kf4 Kxh6 {[%emt 0:00:30]} 52. Ke5 Kg5 {[%emt 0:00:30]} 53. Kxd5 Kf5 {[%emt 0:00:30]} 54. f3 Kf6 {[%emt 0:00:30]} 55. g4 Kg7 {[%emt 0:00:30]} 56. Ke6 Kh6 {[%emt 0:00:30]} 57. Kf6 g5 {[%emt 0:00:30]} 58. Kf5 1-0